[Event "FIDE Womens Grand Prix 2019-20"]
[Site "Skolkovo"]
[Date "2019.09.15"]
[Round "5.2"]
[White "Gunina, Valentina"]
[Black "Stefanova, Antoaneta"]
[Result "1/2-1/2"]
[ECO "C78"]
[WhiteElo "2502"]
[BlackElo "2491"]
[Annotator "ChessBase"]
[PlyCount "77"]
[EventDate "2019.09.11"]
[EventType "tourn"]
[EventCountry "RUS"]
[SourceTitle "playchess.com"]
[Source "ChessBase"]
[SourceQuality "1"]
[TimeControl "40/5400+30:1800+30"]

1. e4 {[%emt 0:00:00]} e5 {[%emt 0:00:00]} 2. Nf3 {[%emt 0:00:00]} Nc6 {[%emt 0:00:00]} 3. Bb5 {[%emt 0:00:00]} a6 {[%emt 0:01:10]} 4. Ba4 {[%emt 0:00:04]} Nf6 {[%emt 0:01:18]} 5. O-O {[%emt 0:00:51]} Bc5 {[%emt 0:01:11]} 6. d3 {[%emt 0:02:19]} d6 {[%emt 0:12:35]} 7. c3 {[%emt 0:01:46]} Ba7 {[%emt 0:04:09]} 8. h3 {[%emt 0:02:27]} h6 {[%emt 0:03:29]} 9. Re1 {[%emt 0:04:57]} g5 {[%emt 0:03:22]} 10. Nh2 {[%emt 0:06:02]} g4 {[%emt 0:11:00]} 11. hxg4 {[%emt 0:02:14]} Rg8 {[%emt 0:02:35]} 12. g5 {[%emt 0:01:56]} hxg5 {[%emt 0:08:35]} 13. d4 {[%emt 0:15:40]} g4 {[%emt 0:10:02]} 14. Be3 {[%emt 0:02:51]} Nxe4 {[%emt 0:03:33]} 15. Nd2 {[%emt 0:16:29]} Nxf2 {[%emt 0:17:39]} 16. Bxf2 {[%emt 0:02:29]} g3 {[%emt 0:00:05]} 17. Bxg3 {[%emt 0:00:07]} Rxg3 {[%emt 0:00:06]} 18. Ne4 {[%emt 0:00:37]} Rg6 {[%emt 0:01:11]} 19. Qh5 {[%emt 0:01:11]} Be6 {[%emt 0:01:23]} 20. Kh1 {[%emt 0:04:30]} exd4 {[%emt 0:05:33]} 21. Rad1 {[%emt 0:10:01]} Kd7 {[%emt 0:02:52]} 22. cxd4 {[%emt 0:07:28]} Qh8 {[%emt 0:00:06]} 23. Qf3 {[%emt 0:01:23]} Bxd4 {[%emt 0:02:10]} 24. g4 {[%emt 0:08:43]} b5 {[%emt 0:02:33]} 25. Bc2 {[%emt 0:01:28]} Ne5 {[%emt 0:03:00]} 26. Qf4 {[%emt 0:00:01]} Bxg4 {[%emt 0:01:46]} 27. Nc5+ {[%emt 0:02:07]} Bxc5 {[%emt 0:01:19]} 28. Rxe5 {[%emt 0:00:31]} Bxd1 {[%emt 0:00:27]} 29. Qxf7+ {[%emt 0:01:14]} Kd8 {[%emt 0:00:38]} 30. Bxg6 {[%emt 0:04:17]} dxe5 {[%emt 0:00:37]} 31. Qd5+ {[%emt 0:00:45]} Ke7 {[%emt 0:00:05]} 32. Qxc5+ {[%emt 0:00:06]} Kf6 {[%emt 0:00:19]} 33. Qc6+ {[%emt 0:00:23]} Kg5 {[%emt 0:00:59]} 34. Qg2+ {[%emt 0:01:06]} Kf6 {[%emt 0:00:35]} 35. Qc6+ {[%emt 0:00:03]} Kg5 {[%emt 0:00:03]} 36. Qg2+ {[%emt 0:00:45]} Kf6 {[%emt 0:00:56]} 37. Qc6+ {[%emt 0:00:03]} Kg5 {[%emt 0:00:35]} 38. Qg2+ {[%emt 0:01:30]} Kf6 {[%emt 0:00:03]} 39. Qc6+ {[%emt 0:00:07]} 1/2-1/2

[Event "FIDE Womens Grand Prix 2019-20"]
[Site "Skolkovo"]
[Date "2019.09.15"]
[Round "5.3"]
[White "Lagno, Kateryna"]
[Black "Cramling, Pia"]
[Result "1-0"]
[ECO "B62"]
[WhiteElo "2545"]
[BlackElo "2487"]
[Annotator "ChessBase"]
[PlyCount "107"]
[EventDate "2019.09.11"]
[EventType "tourn"]
[EventCountry "RUS"]
[SourceTitle "playchess.com"]
[Source "ChessBase"]
[SourceQuality "1"]
[TimeControl "40/5400+30:1800+30"]

1. e4 {[%emt 0:00:00]} c5 {[%emt 0:00:00]} 2. Nf3 {[%emt 0:00:00]} d6 {[%emt 0:00:00]} 3. d4 {[%emt 0:00:00]} cxd4 {[%emt 0:00:00]} 4. Nxd4 {[%emt 0:00:00]} Nf6 {[%emt 0:00:00]} 5. Nc3 {[%emt 0:00:04]} Nc6 {[%emt 0:00:04]} 6. Bg5 {[%emt 0:00:30]} e6 {[%emt 0:00:11]} 7. Bb5 {[%emt 0:00:20]} Bd7 {[%emt 0:04:05]} 8. Qd3 {[%emt 0:00:18]} h6 {[%emt 0:12:48]} 9. Bh4 {[%emt 0:00:34]} Be7 {[%emt 0:08:42]} 10. O-O-O {[%emt 0:00:25]} O-O {[%emt 0:03:08]} 11. f4 {[%emt 0:03:50]} Nxd4 {[%emt 0:13:50]} 12. Bxd7 {[%emt 0:03:52]} Qxd7 {[%emt 0:07:31]} 13. Qxd4 {[%emt 0:00:06]} Rfd8 {[%emt 0:02:41]} 14. e5 {[%emt 0:10:31]} Ne8 {[%emt 0:00:19]} 15. Bxe7 {[%emt 0:01:06]} Qxe7 {[%emt 0:00:06]} 16. Qb4 {[%emt 0:19:49]} Qc7 {[%emt 0:12:30]} 17. Rhe1 {[%emt 0:23:33]} Rac8 {[%emt 0:04:02]} 18. Qe4 {[%emt 0:01:47]} a6 {[%emt 0:04:32]} 19. f5 {[%emt 0:03:31]} dxe5 {[%emt 0:01:25]} 20. Rxd8 {[%emt 0:01:40]} Rxd8 {[%emt 0:00:12]} 21. Qxe5 {[%emt 0:02:02]} Qxe5 {[%emt 0:02:39]} 22. Rxe5 {[%emt 0:00:05]} exf5 {[%emt 0:00:39]} 23. Rxf5 {[%emt 0:00:08]} Nf6 {[%emt 0:00:53]} 24. h3 {[%emt 0:04:35]} Kf8 {[%emt 0:00:16]} 25. Re5 {[%emt 0:02:17]} Rd6 {[%emt 0:04:28]} 26. b4 {[%emt 0:03:04]} Nd7 {[%emt 0:00:54]} 27. Re4 {[%emt 0:02:37]} h5 {[%emt 0:03:37]} 28. a4 {[%emt 0:01:46]} b6 {[%emt 0:01:50]} 29. Kb2 {[%emt 0:03:21]} f6 {[%emt 0:01:39]} 30. Ne2 {[%emt 0:03:41]} Ne5 {[%emt 0:00:51]} 31. Rd4 {[%emt 0:01:03]} Ke7 {[%emt 0:01:01]} 32. Kb3 {[%emt 0:00:30]} g6 {[%emt 0:03:58]} 33. c4 {[%emt 0:01:15]} Rxd4 {[%emt 0:00:52]} 34. Nxd4 {[%emt 0:00:04]} Kd6 {[%emt 0:00:04]} 35. Kc3 {[%emt 0:00:52]} a5 {[%emt 0:01:36]} 36. Nb3 {[%emt 0:05:52]} Nc6 {[%emt 0:02:09]} 37. c5+ {[%emt 0:00:31]} bxc5 {[%emt 0:02:09]} 38. b5 {[%emt 0:00:03]} Ne5 {[%emt 0:02:29]} 39. Nxa5 {[%emt 0:00:11]} Kd5 {[%emt 0:00:10]} 40. Nb3 {[%emt 0:00:00]} Nc4 {[%emt 0:00:00]} 41. a5 {[%emt 0:17:52]} Nd6 {[%emt 0:04:33]} 42. b6 {[%emt 0:00:03]} Kc6 {[%emt 0:00:52]} 43. Nd2 {[%emt 0:00:40]} Kb5 {[%emt 0:01:48]} 44. Nc4 {[%emt 0:00:21]} Nb7 {[%emt 0:00:15]} 45. Kd3 {[%emt 0:01:14]} h4 {[%emt 0:07:27]} 46. Ke4 {[%emt 0:00:40]} Nxa5 {[%emt 0:04:08]} 47. Nxa5 {[%emt 0:00:16]} Kxb6 {[%emt 0:00:07]} 48. Nc4+ {[%emt 0:01:31]} Kb5 {[%emt 0:00:05]} 49. Kd5 {[%emt 0:03:07]} Kb4 {[%emt 0:00:20]} 50. Nd6 {[%emt 0:01:22]} Kc3 {[%emt 0:01:16]} 51. Ke6 {[%emt 0:00:37]} f5 {[%emt 0:06:24]} 52. Kf6 {[%emt 0:00:17]} f4 {[%emt 0:08:13]} 53. Kxg6 {[%emt 0:01:29]} Kd4 {[%emt 0:00:10]} 54. Kf5 {[%emt 0:00:17]} 1-0

[Event "FIDE Womens Grand Prix 2019-20"]
[Site "Skolkovo"]
[Date "2019.09.15"]
[Round "5.4"]
[White "Koneru, Humpy"]
[Black "Goryachkina, Aleksandra"]
[Result "1/2-1/2"]
[ECO "D12"]
[WhiteElo "2560"]
[BlackElo "2564"]
[Annotator "ChessBase"]
[PlyCount "53"]
[EventDate "2019.09.11"]
[EventType "tourn"]
[EventCountry "RUS"]
[SourceTitle "playchess.com"]
[Source "ChessBase"]
[SourceQuality "1"]
[TimeControl "40/5400+30:1800+30"]

1. d4 {[%emt 0:00:00]} d5 {[%emt 0:00:00]} 2. c4 {[%emt 0:00:00]} c6 {[%emt 0:00:00]} 3. Nf3 {[%emt 0:00:17]} Nf6 {[%emt 0:00:02]} 4. e3 {[%emt 0:00:13]} Bf5 {[%emt 0:00:23]} 5. Nc3 {[%emt 0:00:17]} e6 {[%emt 0:00:12]} 6. Nh4 {[%emt 0:00:14]} Bg6 {[%emt 0:00:16]} 7. Qb3 {[%emt 0:02:16]} Qb6 {[%emt 0:01:21]} 8. Nxg6 {[%emt 0:00:30]} hxg6 {[%emt 0:00:07]} 9. Bd2 {[%emt 0:01:18]} Nbd7 {[%emt 0:00:41]} 10. Bd3 {[%emt 0:01:59]} Be7 {[%emt 0:05:32]} 11. h3 {[%emt 0:05:05]} Rc8 {[%emt 0:08:35]} 12. cxd5 {[%emt 0:08:38]} cxd5 {[%emt 0:04:13]} 13. O-O {[%emt 0:08:25]} O-O {[%emt 0:03:31]} 14. Rfc1 {[%emt 0:03:59]} a6 {[%emt 0:03:31]} 15. Qd1 {[%emt 0:10:16]} Qa7 {[%emt 0:02:28]} 16. Ne2 {[%emt 0:03:17]} Ne4 {[%emt 0:08:50]} 17. Rxc8 {[%emt 0:04:11]} Rxc8 {[%emt 0:00:06]} 18. Rc1 {[%emt 0:00:04]} Rxc1 {[%emt 0:05:42]} 19. Bxc1 {[%emt 0:05:14]} Ndf6 {[%emt 0:04:28]} 20. Qc2 {[%emt 0:03:02]} Qb8 {[%emt 0:01:40]} 21. f3 {[%emt 0:02:47]} Ng3 {[%emt 0:14:16]} 22. Nxg3 {[%emt 0:05:04]} Qxg3 {[%emt 0:00:06]} 23. Qf2 {[%emt 0:03:07]} Qc7 {[%emt 0:01:03]} 24. Qc2 {[%emt 0:00:29]} Qg3 {[%emt 0:05:31]} 25. Qf2 {[%emt 0:03:39]} Qc7 {[%emt 0:00:09]} 26. Qc2 {[%emt 0:00:04]} Qg3 {[%emt 0:00:07]} 27. Qf2 {[%emt 0:00:06]} 1/2-1/2

[Event "FIDE Womens Grand Prix 2019-20"]
[Site "Skolkovo"]
[Date "2019.09.15"]
[Round "5.5"]
[White "Harika, Dronavalli"]
[Black "Kosteniuk, Alexandra"]
[Result "1/2-1/2"]
[ECO "C45"]
[WhiteElo "2503"]
[BlackElo "2495"]
[Annotator "ChessBase"]
[PlyCount "73"]
[EventDate "2019.09.11"]
[EventType "tourn"]
[EventCountry "RUS"]
[SourceTitle "playchess.com"]
[Source "ChessBase"]
[SourceQuality "1"]
[TimeControl "40/5400+30:1800+30"]

1. e4 {[%emt 0:00:00]} e5 {[%emt 0:00:00]} 2. Nf3 {[%emt 0:00:00]} Nc6 {[%emt 0:00:00]} 3. d4 {[%emt 0:00:00]} exd4 {[%emt 0:00:00]} 4. Nxd4 {[%emt 0:00:00]} Nf6 {[%emt 0:00:00]} 5. Nxc6 {[%emt 0:00:11]} bxc6 {[%emt 0:00:00]} 6. e5 {[%emt 0:00:08]} Qe7 {[%emt 0:00:03]} 7. Qe2 {[%emt 0:00:07]} Nd5 {[%emt 0:00:06]} 8. h4 {[%emt 0:00:09]} a5 {[%emt 0:01:56]} 9. g3 {[%emt 0:00:31]} Ba6 {[%emt 0:06:24]} 10. c4 {[%emt 0:00:18]} Qe6 {[%emt 0:13:53]} 11. Bh3 {[%emt 0:12:53]} Bb4+ {[%emt 0:01:36]} 12. Nd2 {[%emt 0:04:00]} Qe7 {[%emt 0:05:20]} 13. O-O {[%emt 0:04:32]} Nb6 {[%emt 0:10:36]} 14. b3 {[%emt 0:03:23]} Bc3 {[%emt 0:00:08]} 15. Rb1 {[%emt 0:00:16]} O-O {[%emt 0:00:29]} 16. Nf3 {[%emt 0:07:33]} f6 {[%emt 0:01:22]} 17. e6 {[%emt 0:14:35]} d6 {[%emt 0:00:22]} 18. Qd3 {[%emt 0:03:15]} Be5 {[%emt 0:00:36]} 19. Nd4 {[%emt 0:00:23]} Bxd4 {[%emt 0:01:41]} 20. Qxd4 {[%emt 0:00:07]} c5 {[%emt 0:10:25]} 21. Qc3 {[%emt 0:06:35]} Bb7 {[%emt 0:02:19]} 22. Re1 {[%emt 0:00:21]} Nc8 {[%emt 0:00:58]} 23. a3 {[%emt 0:05:16]} Qe8 {[%emt 0:01:04]} 24. b4 {[%emt 0:03:57]} axb4 {[%emt 0:07:54]} 25. axb4 {[%emt 0:00:04]} Qc6 {[%emt 0:00:16]} 26. Kh2 {[%emt 0:00:44]} Ra2 {[%emt 0:06:13]} 27. Be3 {[%emt 0:01:13]} Qf3 {[%emt 0:00:36]} 28. Rb2 {[%emt 0:00:06]} cxb4 {[%emt 0:05:55]} 29. Qxb4 {[%emt 0:00:31]} Rxb2 {[%emt 0:00:19]} 30. Qxb2 {[%emt 0:00:05]} Ne7 {[%emt 0:01:25]} 31. Qe2 {[%emt 0:08:26]} Ng6 {[%emt 0:03:34]} 32. Qxf3 {[%emt 0:00:55]} Bxf3 {[%emt 0:00:03]} 33. c5 {[%emt 0:00:32]} Re8 {[%emt 0:05:01]} 34. cxd6 {[%emt 0:00:52]} cxd6 {[%emt 0:00:02]} 35. Ra1 {[%emt 0:07:38]} Ne5 {[%emt 0:01:27]} 36. Bf4 {[%emt 0:00:06]} Ng4+ {[%emt 0:07:15]} 37. Bxg4 {[%emt 0:00:12]} 1/2-1/2

[Event "FIDE Womens Grand Prix 2019-20"]
[Site "Skolkovo"]
[Date "2019.09.15"]
[Round "5.6"]
[White "Sebag, Marie"]
[Black "Kashlinskaya, Alina"]
[Result "1/2-1/2"]
[ECO "C42"]
[WhiteElo "2450"]
[BlackElo "2487"]
[Annotator "ChessBase"]
[PlyCount "53"]
[EventDate "2019.09.11"]
[EventType "tourn"]
[EventCountry "RUS"]
[SourceTitle "playchess.com"]
[Source "ChessBase"]
[SourceQuality "1"]
[TimeControl "40/5400+30:1800+30"]

1. e4 {[%emt 0:00:00]} e5 {[%emt 0:00:00]} 2. Nf3 {[%emt 0:00:00]} Nf6 {[%emt 0:00:00]} 3. Nxe5 {[%emt 0:00:16]} d6 {[%emt 0:00:00]} 4. Nf3 {[%emt 0:00:31]} Nxe4 {[%emt 0:00:05]} 5. d4 {[%emt 0:00:15]} d5 {[%emt 0:00:10]} 6. Bd3 {[%emt 0:00:12]} Bd6 {[%emt 0:00:22]} 7. O-O {[%emt 0:01:53]} O-O {[%emt 0:00:08]} 8. c4 {[%emt 0:01:15]} c6 {[%emt 0:00:11]} 9. Re1 {[%emt 0:00:59]} Bf5 {[%emt 0:01:34]} 10. Qb3 {[%emt 0:01:18]} Qd7 {[%emt 0:00:46]} 11. Nc3 {[%emt 0:03:34]} Nxc3 {[%emt 0:01:03]} 12. Bxf5 {[%emt 0:01:10]} Qxf5 {[%emt 0:00:07]} 13. bxc3 {[%emt 0:00:54]} b6 {[%emt 0:00:55]} 14. h3 {[%emt 0:08:33]} dxc4 {[%emt 0:11:52]} 15. Qxc4 {[%emt 0:00:16]} b5 {[%emt 0:00:34]} 16. Qb3 {[%emt 0:02:02]} Nd7 {[%emt 0:01:22]} 17. Ba3 {[%emt 0:05:52]} Bxa3 {[%emt 0:01:07]} 18. Qxa3 {[%emt 0:00:05]} a5 {[%emt 0:04:29]} 19. Ne5 {[%emt 0:13:20]} Nxe5 {[%emt 0:15:35]} 20. Rxe5 {[%emt 0:00:28]} Qd3 {[%emt 0:05:19]} 21. Qc5 {[%emt 0:11:17]} Rac8 {[%emt 0:05:04]} 22. Rae1 {[%emt 0:03:52]} h6 {[%emt 0:00:58]} 23. R5e3 {[%emt 0:06:34]} Qc2 {[%emt 0:04:44]} 24. R3e2 {[%emt 0:01:00]} Qd3 {[%emt 0:00:18]} 25. Re3 {[%emt 0:00:05]} Qc2 {[%emt 0:00:11]} 26. R3e2 {[%emt 0:00:04]} Qd3 {[%emt 0:00:44]} 27. Re3 {[%emt 0:00:04]} 1/2-1/2

[Event "FIDE Womens Grand Prix 2019-20"]
[Site "Skolkovo"]
[Date "2019.09.16"]
[Round "6.1"]
[White "Ju, Wenjun"]
[Black "Kashlinskaya, Alina"]
[Result "1-0"]
[ECO "C18"]
[WhiteElo "2576"]
[BlackElo "2487"]
[Annotator "ChessBase"]
[PlyCount "81"]
[EventDate "2019.09.11"]
[EventType "tourn"]
[EventCountry "RUS"]
[SourceTitle "playchess.com"]
[Source "ChessBase"]
[SourceQuality "1"]
[TimeControl "40/5400+30:1800+30"]

1. e4 {[%emt 0:00:00]} e6 {[%emt 0:00:00]} 2. d4 {[%emt 0:00:00]} d5 {[%emt 0:00:00]} 3. Nc3 {[%emt 0:00:00]} Bb4 {[%emt 0:00:05]} 4. e5 {[%emt 0:00:31]} Ne7 {[%emt 0:00:10]} 5. a3 {[%emt 0:00:34]} Bxc3+ {[%emt 0:00:07]} 6. bxc3 {[%emt 0:00:03]} c5 {[%emt 0:00:07]} 7. Qg4 {[%emt 0:01:08]} Kf8 {[%emt 0:00:17]} 8. h4 {[%emt 0:02:08]} Qa5 {[%emt 0:06:20]} 9. Bd2 {[%emt 0:01:44]} Qa4 {[%emt 0:00:26]} 10. h5 {[%emt 0:08:02]} h6 {[%emt 0:00:56]} 11. Rh3 {[%emt 0:00:21]} Nbc6 {[%emt 0:04:03]} 12. Qf4 {[%emt 0:05:00]} b6 {[%emt 0:19:50]} 13. Rf3 {[%emt 0:02:26]} Nd8 {[%emt 0:00:21]} 14. dxc5 {[%emt 0:01:38]} Qxc2 {[%emt 0:12:23]} 15. Bd3 {[%emt 0:22:54]} Qb2 {[%emt 0:00:52]} 16. Rb1 {[%emt 0:00:03]} Qxa3 {[%emt 0:00:44]} 17. cxb6 {[%emt 0:04:55]} axb6 {[%emt 0:01:18]} 18. Rxb6 {[%emt 0:00:05]} Qa1+ {[%emt 0:07:10]} 19. Rb1 {[%emt 0:01:08]} Qa2 {[%emt 0:00:12]} 20. Ne2 {[%emt 0:08:31]} Ba6 {[%emt 0:03:55]} 21. Nc1 {[%emt 0:00:04]} Bxd3 {[%emt 0:10:45]} 22. Nxa2 {[%emt 0:00:06]} Bxb1 {[%emt 0:00:04]} 23. Nb4 {[%emt 0:00:03]} Be4 {[%emt 0:02:18]} 24. Rg3 {[%emt 0:00:03]} Nf5 {[%emt 0:10:47]} 25. Rg4 {[%emt 0:02:56]} Kg8 {[%emt 0:00:08]} 26. f3 {[%emt 0:04:39]} Bb1 {[%emt 0:00:05]} 27. Qh2 {[%emt 0:01:10]} Kh7 {[%emt 0:02:20]} 28. Rf4 {[%emt 0:02:19]} Ra1 {[%emt 0:03:02]} 29. Kf2 {[%emt 0:06:18]} Ba2 {[%emt 0:00:34]} 30. g4 {[%emt 0:01:46]} Ne7 {[%emt 0:00:02]} 31. Qh4 {[%emt 0:01:27]} Re8 {[%emt 0:04:05]} 32. g5 {[%emt 0:00:18]} Nf5 {[%emt 0:01:49]} 33. Rxf5 {[%emt 0:01:55]} exf5 {[%emt 0:00:01]} 34. gxh6 {[%emt 0:00:12]} Bc4 {[%emt 0:02:10]} 35. hxg7 {[%emt 0:01:21]} Rxe5 {[%emt 0:04:12]} 36. Qxd8 {[%emt 0:02:55]} Re2+ {[%emt 0:01:13]} 37. Kg3 {[%emt 0:00:03]} Kxg7 {[%emt 0:00:08]} 38. Bg5 {[%emt 0:01:39]} Re6 {[%emt 0:04:09]} 39. h6+ {[%emt 0:00:20]} Kh7 {[%emt 0:00:09]} 40. Qf8 {[%emt 0:00:00]} Rg1+ {[%emt 0:00:00]} 41. Kf4 {[%emt 0:00:28]} 1-0

[Event "FIDE Womens Grand Prix 2019-20"]
[Site "Skolkovo"]
[Date "2019.09.16"]
[Round "6.2"]
[White "Kosteniuk, Alexandra"]
[Black "Sebag, Marie"]
[Result "1/2-1/2"]
[ECO "D78"]
[WhiteElo "2495"]
[BlackElo "2450"]
[Annotator "ChessBase"]
[PlyCount "60"]
[EventDate "2019.09.11"]
[EventType "tourn"]
[EventCountry "RUS"]
[SourceTitle "playchess.com"]
[Source "ChessBase"]
[SourceQuality "1"]
[TimeControl "40/5400+30:1800+30"]

1. Nf3 {[%emt 0:00:00]} d5 {[%emt 0:00:25]} 2. g3 {[%emt 0:00:00]} g6 {[%emt 0:05:05]} 3. Bg2 {[%emt 0:00:12]} Bg7 {[%emt 0:00:06]} 4. d4 {[%emt 0:00:17]} Nf6 {[%emt 0:00:24]} 5. c4 {[%emt 0:00:32]} c6 {[%emt 0:00:21]} 6. O-O {[%emt 0:01:06]} O-O {[%emt 0:00:11]} 7. Qb3 {[%emt 0:00:18]} Qb6 {[%emt 0:02:20]} 8. Nc3 {[%emt 0:00:11]} Na6 {[%emt 0:22:22]} 9. Qxb6 {[%emt 0:20:41]} axb6 {[%emt 0:03:44]} 10. Na4 {[%emt 0:00:25]} Nd7 {[%emt 0:04:04]} 11. cxd5 {[%emt 0:01:11]} cxd5 {[%emt 0:00:38]} 12. Ne5 {[%emt 0:03:56]} Nac5 {[%emt 0:08:09]} 13. Nxb6 {[%emt 0:06:30]} Nxb6 {[%emt 0:06:22]} 14. dxc5 {[%emt 0:00:07]} Bxe5 {[%emt 0:06:43]} 15. cxb6 {[%emt 0:00:47]} Be6 {[%emt 0:03:25]} 16. a4 {[%emt 0:01:11]} Rfc8 {[%emt 0:05:32]} 17. Rd1 {[%emt 0:07:21]} Rc2 {[%emt 0:05:59]} 18. a5 {[%emt 0:28:02]} Bxb2 {[%emt 0:01:50]} 19. Bxb2 {[%emt 0:00:18]} Rxb2 {[%emt 0:00:09]} 20. e4 {[%emt 0:00:39]} d4 {[%emt 0:08:59]} 21. e5 {[%emt 0:01:00]} Ba2 {[%emt 0:03:21]} 22. Rxd4 {[%emt 0:08:09]} Rxa5 {[%emt 0:00:14]} 23. Rd7 {[%emt 0:00:18]} Rab5 {[%emt 0:02:35]} 24. Be4 {[%emt 0:08:07]} Rxb6 {[%emt 0:02:02]} 25. Rxe7 {[%emt 0:00:09]} Be6 {[%emt 0:00:30]} 26. Ra7 {[%emt 0:01:40]} Re2 {[%emt 0:01:49]} 27. Rexb7 {[%emt 0:00:51]} Rxb7 {[%emt 0:00:31]} 28. Bxb7 {[%emt 0:00:05]} Rxe5 {[%emt 0:00:07]} 29. Kg2 {[%emt 0:00:31]} Bd5+ {[%emt 0:00:25]} 30. Bxd5 {[%emt 0:00:05]} Rxd5 {[%emt 0:00:04]} 1/2-1/2

[Event "FIDE Womens Grand Prix 2019-20"]
[Site "Skolkovo"]
[Date "2019.09.16"]
[Round "6.3"]
[White "Goryachkina, Aleksandra"]
[Black "Harika, Dronavalli"]
[Result "1-0"]
[ECO "E81"]
[WhiteElo "2564"]
[BlackElo "2503"]
[Annotator "ChessBase"]
[PlyCount "123"]
[EventDate "2019.09.11"]
[EventType "tourn"]
[EventCountry "RUS"]
[SourceTitle "playchess.com"]
[Source "ChessBase"]
[SourceQuality "1"]
[TimeControl "40/5400+30:1800+30"]

1. d4 {[%emt 0:00:00]} Nf6 {[%emt 0:00:00]} 2. c4 {[%emt 0:00:00]} g6 {[%emt 0:00:00]} 3. Nc3 {[%emt 0:00:00]} Bg7 {[%emt 0:00:00]} 4. e4 {[%emt 0:00:11]} d6 {[%emt 0:00:00]} 5. f3 {[%emt 0:00:12]} O-O {[%emt 0:00:13]} 6. Be3 {[%emt 0:00:10]} c5 {[%emt 0:00:13]} 7. Nge2 {[%emt 0:00:36]} Nc6 {[%emt 0:00:11]} 8. d5 {[%emt 0:00:29]} Ne5 {[%emt 0:00:16]} 9. Ng3 {[%emt 0:00:37]} h5 {[%emt 0:00:30]} 10. Be2 {[%emt 0:03:23]} h4 {[%emt 0:00:21]} 11. Nf1 {[%emt 0:00:18]} e6 {[%emt 0:00:15]} 12. Bg5 {[%emt 0:03:13]} Qb6 {[%emt 0:00:22]} 13. Qb3 {[%emt 0:12:03]} exd5 {[%emt 0:02:07]} 14. cxd5 {[%emt 0:03:23]} h3 {[%emt 0:11:49]} 15. g3 {[%emt 0:04:51]} Qc7 {[%emt 0:00:52]} 16. Nd2 {[%emt 0:02:03]} a6 {[%emt 0:01:14]} 17. a4 {[%emt 0:00:53]} Rb8 {[%emt 0:03:16]} 18. O-O {[%emt 0:08:41]} Bd7 {[%emt 0:02:00]} 19. a5 {[%emt 0:03:46]} Nh7 {[%emt 0:10:05]} 20. Be3 {[%emt 0:00:56]} f5 {[%emt 0:00:30]} 21. f4 {[%emt 0:11:45]} Nf7 {[%emt 0:00:37]} 22. e5 {[%emt 0:15:05]} dxe5 {[%emt 0:00:23]} 23. Nc4 {[%emt 0:00:30]} e4 {[%emt 0:01:03]} 24. d6 {[%emt 0:02:56]} Qd8 {[%emt 0:01:19]} 25. Bxc5 {[%emt 0:03:35]} Be6 {[%emt 0:01:22]} 26. Rad1 {[%emt 0:01:34]} Nf6 {[%emt 0:16:48]} 27. Bb6 {[%emt 0:01:56]} Qd7 {[%emt 0:03:00]} 28. Bc7 {[%emt 0:00:46]} Ra8 {[%emt 0:01:47]} 29. Qa4 {[%emt 0:02:31]} Qxa4 {[%emt 0:06:44]} 30. Nxa4 {[%emt 0:00:01]} Nd5 {[%emt 0:01:34]} 31. Nc5 {[%emt 0:04:28]} Nxc7 {[%emt 0:00:12]} 32. dxc7 {[%emt 0:00:13]} Rae8 {[%emt 0:01:10]} 33. Nb6 {[%emt 0:03:31]} Bc8 {[%emt 0:00:46]} 34. Nxc8 {[%emt 0:02:28]} Rxc8 {[%emt 0:00:02]} 35. Rd7 {[%emt 0:00:37]} Bxb2 {[%emt 0:03:12]} 36. Bc4 {[%emt 0:01:00]} Ba3 {[%emt 0:02:07]} 37. Bxf7+ {[%emt 0:06:13]} Rxf7 {[%emt 0:00:10]} 38. Rd8+ {[%emt 0:00:08]} Rf8 {[%emt 0:00:24]} 39. Ne6 {[%emt 0:00:21]} Bc5+ {[%emt 0:01:38]} 40. Kh1 {[%emt 0:00:00]} Be7 {[%emt 0:00:00]} 41. Rfd1 {[%emt 0:05:44]} e3 {[%emt 0:06:10]} 42. Nxf8 {[%emt 0:03:38]} e2 {[%emt 0:00:22]} 43. Nxg6+ {[%emt 0:06:17]} Kf7 {[%emt 0:06:26]} 44. Re1 {[%emt 0:02:02]} Bxd8 {[%emt 0:00:48]} 45. cxd8=Q {[%emt 0:00:19]} Rxd8 {[%emt 0:00:01]} 46. Ne5+ {[%emt 0:00:11]} Kg7 {[%emt 0:00:13]} 47. Kg1 {[%emt 0:00:15]} Rd5 {[%emt 0:00:11]} 48. Nc4 {[%emt 0:01:03]} Rc5 {[%emt 0:00:22]} 49. Nd6 {[%emt 0:00:55]} Rxa5 {[%emt 0:00:02]} 50. Nxb7 {[%emt 0:03:21]} Rd5 {[%emt 0:06:46]} 51. Rxe2 {[%emt 0:00:33]} a5 {[%emt 0:00:04]} 52. Ra2 {[%emt 0:02:02]} a4 {[%emt 0:00:06]} 53. Rxa4 {[%emt 0:02:13]} Rd2 {[%emt 0:00:09]} 54. Ra1 {[%emt 0:01:20]} Kg6 {[%emt 0:00:43]} 55. Nc5 {[%emt 0:01:12]} Kh5 {[%emt 0:00:23]} 56. Ne6 {[%emt 0:00:36]} Kg4 {[%emt 0:02:02]} 57. Rf1 {[%emt 0:00:53]} Rg2+ {[%emt 0:00:22]} 58. Kh1 {[%emt 0:00:02]} Ra2 {[%emt 0:00:50]} 59. Ng5 {[%emt 0:00:34]} Ra3 {[%emt 0:00:11]} 60. Nf7 {[%emt 0:01:21]} Kh5 {[%emt 0:00:05]} 61. Ne5 {[%emt 0:00:12]} Ra2 {[%emt 0:00:12]} 62. Nd3 {[%emt 0:00:17]} 1-0